Cogmind - Beta 10.2 @@@ ROGUE MODE // 2021.09.18 @ 19:20:33 Player: Rathori Result: Destroyed by D-53 Grenadier with Mini Grenade Launcher Performance ------------- Evolutions (1) 500 Regions Visited (3) 600 Robots Destroyed (38) 190 Value Destroyed (873) 873 Prototype IDs (0) 0 Alien Tech Used (0) 0 Bonus (12) 12 TOTAL SCORE: 2175 Bonus ------- High Alert Combat Kills 12 Cogmind --------- Core Integrity 0/400 Matter 253/300 Energy 92/100 System Corruption 0% Temperature Cool (0) Movement Core (300) Ox5 Location -9/Mines Parts ------- > --- POWER (1) -------- (None) > --- PROPULSION (3) --- (None) > --- UTILITY (3) ------ Large Storage Unit > --- WEAPON (2) ------- (None) > --- INVENTORY (10) --- Ion Engine Ion Engine Medium Storage Unit Signal Interpreter Datajack Peak State ------------ > --- POWER ------------ Ion Engine > --- PROPULSION ------- Aluminum Leg Aluminum Leg Aluminum Leg > --- UTILITY ---------- Improved Heat Sink Small Storage Unit Sensor Array > --- WEAPON ----------- EM Shotgun Heavy Assault Rifle > --- INVENTORY -------- Ion Engine Aluminum Leg Signal Interpreter Datajack [Rating: 13] Favorites ----------- Power Ion Engine Engine Ion Engine Propulsion Aluminum Leg Leg Aluminum Leg Utility Small Storage Unit Device Improved Heat Sink Storage Small Storage Unit Weapon Heavy Assault Rifle Energy Gun EM Shotgun Ballistic Gun Heavy Assault Rifle Launcher Grenade Launcher Build | -11 -10 -9 -9 ------- Run | Scr Mat Mat Min Slots Evolved 2 | . . 2 . Power . | . . . . Propulsion 1 | . . 1 . Utility 1 | . . 1 . Weapon . | . . . . Parts Attached 37 | 6 15 11 5 Power 5 | 1 2 2 . Engine 5 | 1 2 2 . Core . | . . . . Reactor . | . . . . Propulsion 12 | 2 6 4 . Treads . | . . . . Leg 12 | 2 6 4 . Wheel . | . . . . Hover . | . . . . Flight . | . . . . Utility 8 | 1 3 2 2 Device 5 | . 3 2 . Storage 3 | 1 . . 2 Processor . | . . . . Hackware . | . . . . Protection . | . . . . Artifact . | . . . . Weapon 12 | 2 4 3 3 Energy Gun 3 | . 3 . . Energy Cannon . | . . . . Ballistic Gun 8 | 2 1 3 2 Ballistic Cannon . | . . . . Launcher 1 | . . . 1 Special Weapon . | . . . . Impact Weapon . | . . . . Slashing Weapon . | . . . . Piercing Weapon . | . . . . Special Melee Weapon . | . . . . Unidentified Prototypes . | . . . . Parts Lost 13 | . . 3 10 Power 1 | . . . 1 Propulsion 5 | . . 2 3 Utility 2 | . . . 2 Weapon 5 | . . 1 4 Highest Loss Streak 10 | . . 2 10 Average Slot Usage (%) 97 | . 99 96 93 Engine 12 | . 14 11 9 Leg 28 | . 27 30 28 Device 16 | . 13 22 20 Storage 12 | . 14 11 11 Energy Gun 8 | . 11 4 . Ballistic Gun 16 | . 16 16 20 Naked Turns . | . . . . Heaviest Build 29 | 10 16 17 29 Greatest Support 30 | 20 20 30 30 Greatest Overweight (x) 5 | . . . 5 Average Overweight (x) . | . . . . Largest Inventory Capacity 10 | 6 6 6 10 Average Capacity 6 | 5 6 6 7 Most Carried 7 | 2 6 6 7 Average Carried 5 | . 5 4 6 Final Capacity 10 | 6 6 6 10 Final Carried 6 | 2 6 6 5 Class Distribution -------------------- 50% | Scavenger-Mutant 49% | Mutant Dominant Class ---------------- Mutant | -10/Materials Scavenger-Mutant | -9/Materials Scavenger-Mutant | -9/Mines Resources | -11 -10 -9 -9 ----------- Run | Scr Mat Mat Min Matter Collected 926 | 194 408 306 18 Remotely . | . . . . Salvage Created 1153 | . 585 568 . Parts 78 | . 35 43 . Haulers Intercepted . | . . . . Recyclers Shooed 1 | . 1 . . Parts Field Recycled . | . . . . Retrieved Matter . | . . . . Parts Self-Destructed . | . . . . Prevented . | . . . . Kills | -11 -10 -9 -9 ------- Run | Scr Mat Mat Min Combat Hostiles Destroyed 30 | . 11 19 . Guns 30 | . 11 19 . Classes Destroyed 6 | . 3 3 . Recycler 1 | . . 1 . Operator 1 | . 1 . . Watcher 6 | . 3 3 . Swarmer 14 | . . 14 . Grunt 14 | . 11 3 . Sentry 2 | . . 2 . Best Kill Streak 4 | . 2 4 . Combat Bots Only 4 | . 2 4 . Max Kills in Single Turn 2 | . 1 2 . Gunslinging . | . . . . Exploded . | . . . . Melee . | . . . . Uniques/NPCs Destroyed . | . . . . Combat | -11 -10 -9 -9 -------- Run | Scr Mat Mat Min Damage Taken 1794 | . 418 580 796 Core 468 | . 62 129 277 Absorbed by Shields . | . . . . Core Remaining (%) 87 | 100 75 . . Volleys Fired 125 | . 53 67 5 Largest 2 | . 2 2 2 Hottest 68 | . 68 68 53 Shots Fired 230 | . 106 114 10 Gun 227 | . 106 114 7 Cannon . | . . . . Launcher 3 | . . . 3 Special . | . . . . Kinetic 183 | . 86 90 7 Thermal 10 | . 10 . . Explosive 3 | . . . 3 Electromagnetic 34 | . 10 24 . Robot Hit Streak 16 | . 16 8 5 Robot Miss Streak 5 | . 5 4 1 Penetration Max . | . . . . Secondary Targets 2 | . . 2 . Max Gunslinging Chain 1 | . . 1 . Shots Hit Robots 149 | . 69 72 8 Core Hits 68 | . 32 31 5 Critical Hits 2 | . . 1 1 Critical Kills 1 | . . 1 . Critical Parts Destroyed 1 | . . . 1 Melee Attacks . | . . . . Impact . | . . . . Slashing . | . . . . Piercing . | . . . . Sneak Attacks . | . . . . Combat Hostiles . | . . . . Follow-up Attacks . | . . . . Damage Inflicted 1820 | . 813 906 101 Guns 1708 | . 813 824 71 Cannons . | . . . . Explosions 112 | . . 82 30 Melee . | . . . . Ramming . | . . . . Kinetic 1199 | . 546 582 71 Thermal 179 | . 97 82 . Explosive 30 | . . . 30 Electromagnetic 412 | . 170 242 . Impact . | . . . . Slashing . | . . . . Piercing . | . . . . Highest Corruption . | . . . . Average Corruption . | . . . . Corruption Purged . | . . . . Overload Shots . | . . . . Overflow Damage 12 | . . 12 . Projectiles . | . . . . Explosions 12 | . . 12 . Melee . | . . . . Knockbacks . | . . . . Impact . | . . . . Kinetic . | . . . . Secondary . | . . . . Self-Inflicted Damage 39 | . . 30 9 Shots 2 | . . 1 1 Rammed . | . . . . Targets Rammed . | . . . . Kicked . | . . . . Crushed . | . . . . Highest Temperature . | . . . . Average Temperature . | . . . . Received Heat Transfer 306 | . 237 69 . Siege Activations . | . . . . Robots Corrupted . | . . . . Combat Hostiles . | . . . . Parts Fried . | . . . . Impact Corruptions . | . . . . Robots Melted . | . . . . Combat Hostiles . | . . . . Parts Melted . | . . . . Heat Transferred 325 | . 225 100 . Parts Sabotaged . | . . . . Parts Stolen . | . . . . Parts Stripped . | . . . . Power Chain Reactions 1 | . . 1 . Missiles Intercepted . | . . . . Alert | -11 -10 -9 -9 ------- Run | Scr Mat Mat Min Peak Influence 512 | . 217 512 192 Initial 177 | . . 53 177 Average 160 | . 81 305 170 Maximum Alert Level 2 | . 1 2 . Low Security (%) 68 | 100 89 26 100 Level 1 21 | . 10 45 . Level 2 9 | . . 28 . Level 3 . | . . . . Level 4 . | . . . . Level 5 . | . . . . High Security . | . . . . Max Security . | . . . . Squads Dispatched 7 | . 3 4 . Investigation 1 | . . 1 . Extermination . | . . . . Reinforcement 6 | . 3 3 . Assault . | . . . . Garrison . | . . . . Intercept . | . . . . Construction Impeded . | . . . . Haulers Reinforced . | . . . . Stealth | -11 -10 -9 -9 --------- Run | Scr Mat Mat Min Distress Signals 4 | . 1 3 . Communications Jammed . | . . . . Distress Signals . | . . . . Times Spotted 64 | . 23 32 9 Peak Tracking Total 10 | . 5 4 10 Tactical Retreats 3 | . 1 2 . Traps | -11 -10 -9 -9 ------- Run | Scr Mat Mat Min Traps Triggered 2 | . 1 1 . Indirectly . | . . . . Trap Hack Attempts . | . . . . Triggered . | . . . . Disarmed 1 | . 1 . . Reprogrammed . | . . . . Reused . | . . . . Traps Extracted . | . . . . Installed . | . . . . Triggered . | . . . . Machines | -11 -10 -9 -9 ---------- Run | Scr Mat Mat Min Machines Disabled 1 | . . 1 . Max in Single Turn 1 | . . 1 . Machines Sabotaged . | . . . . Garrisons Compromised . | . . . . Overloaded Fab Kills . | . . . . Fab Network Shutdowns . | . . . . Hacking | -11 -10 -9 -9 --------- Run | Scr Mat Mat Min Machines Accessed 7 | . 6 1 . Terminals 5 | . 4 1 . Fabricators . | . . . . Repair Stations 1 | . 1 . . Recycling Units 1 | . 1 . . Scanalyzers . | . . . . Garrison Access . | . . . . Total Hacks 13 | . 11 2 . Successful 6 | . 6 . . Failed 7 | . 5 2 . Catastrophic 2 | . 1 1 . Database Lockouts . | . . . . Manual 7 | . 5 2 . Terminals 10 | . 8 2 . Fabricators . | . . . . Repair Stations 2 | . 2 . . Recycling Units 1 | . 1 . . Scanalyzers . | . . . . Garrison Access . | . . . . Terminal Hacks 3 | . 3 . . Level Access Points 1 | . 1 . . Locate Traps 1 | . 1 . . Disarm Traps 1 | . 1 . . Fabricator Hacks . | . . . . Repair Station Hacks 2 | . 2 . . Scan Component 1 | . 1 . . Repair 1 | . 1 . . Recycling Unit Hacks 1 | . 1 . . Report Inventory 1 | . 1 . . Scanalyzer . | . . . . Garrison Access Hacks . | . . . . Unauthorized Hacks . | . . . . Terminals . | . . . . Fabricators . | . . . . Repair Stations . | . . . . Recycling Units . | . . . . Scanalyzers . | . . . . Garrison Access . | . . . . Data Cores Recovered . | . . . . Used . | . . . . Hacking Detections 6 | . 5 1 . Full Trace Events . | . . . . Feedback Events . | . . . . Feedback Blocked . | . . . . Robot Schematics Acquired . | . . . . Robots Built . | . . . . Matter . | . . . . Time . | . . . . Total Robot Build Rating . | . . . . Part Schematics Acquired . | . . . . Parts Built . | . . . . Matter . | . . . . Time . | . . . . Total Part Build Rating . | . . . . Parts Repaired 1 | . 1 . . Time 26 | . 26 . . Parts Recycled . | . . . . Recycled Matter . | . . . . Retrieved Matter . | . . . . Retrieved Components . | . . . . Parts Scanalyzed . | . . . . Part Schematics Acquired . | . . . . Parts Damaged . | . . . . Bothacking | -11 -10 -9 -9 ------------ Run | Scr Mat Mat Min Used RIF Installer . | . . . . Robots Hacked . | . . . . Non-combat . | . . . . Combat . | . . . . Robot Hacks Applied . | . . . . Relay Couplers Released . | . . . . Robots Rewired . | . . . . Allies Hacked . | . . . . Hacks Repelled . | . . . . Allies | -11 -10 -9 -9 -------- Run | Scr Mat Mat Min Total Allies . | . . . . Largest Group . | . . . . Highest-Rated Group . | . . . . Highest-Rated Ally . | . . . . Total Orders . | . . . . Ally Attacks . | . . . . Total Damage . | . . . . Kills . | . . . . Allies Corrupted . | . . . . Allies Melted . | . . . . Intel | -11 -10 -9 -9 ------- Run | Scr Mat Mat Min Robot Analysis Total . | . . . . Derelict Logs Recovered . | . . . . Drone Launches . | . . . . Drone Recoveries . | . . . . Exploration | -11 -10 -9 -9 ------------- Run | Scr Mat Mat Min Turns Passed 2054 | 58 1191 709 96 Spaces Moved 1189 | 41 712 374 62 Core 7 | 6 . . 1 Treads . | . . . . Legs 1182 | 35 712 374 61 Wheels . | . . . . Hover . | . . . . Flight . | . . . . Fastest Speed 50 | 50 120 120 120 Average Speed 119 | 109 120 120 123 Slowest Speed 300 | 120 120 120 300 Overloaded Moves . | . . . . Propulsion Burnouts . | . . . . Robots Hopped . | . . . . Cave-ins Triggered . | . . . . Exploration Rate (%) 36 | 3 91 32 21 Regions Visited 3 Branch Regions 1 Pre-discovered Areas . | . . . . Known Exits Taken 1 | . 1 . . Unknown Exits Taken 2 | 1 . 1 . Scrap Searched 1 | . . . 1 Spaces Dug . | . . . . Terrain Destroyed 31 | . . 4 27 Melee . | . . . . Projectile . | . . . . AOE 31 | . . 4 27 Terrain Rammed . | . . . . Walls Destroyed . | . . . . Machines Disabled . | . . . . Actions | -11 -10 -9 -9 --------- Run | Scr Mat Mat Min Total 1602 | 51 955 523 73 Wait 226 | 3 154 69 . Move 1186 | 40 711 373 62 Hop . | . . . . Pick Up 11 | 2 8 1 . Fast Attach 11 | 6 3 2 . Attach 5 | . . 3 2 Detach . | . . . . Swap 21 | . 12 6 3 Drop 17 | . 14 2 1 Fire 125 | . 53 67 5 Melee . | . . . . Ram . | . . . . Kick . | . . . . Crush . | . . . . Escape Stasis . | . . . . Rewire . | . . . . Trap . | . . . . Miscellaneous . | . . . . Route ------- -11/Scrapyard -10/Materials (discovered 4 exits: *Mat x3 / [*Min]) -9/Materials (discovered 2 exits: [*Mat] / [*Min]) -9/Mines History --------- Turn | Location | Event 4 | -11/Scrapyard | Discovered new exit (range 14) 59 | -11/Scrapyard | Entered Materials 391 | -10/Materials | Repaired Aluminum Leg 589 | -10/Materials | Discovered new exit (range 13) 688 | -10/Materials | Identified exit to Materials 697 | -10/Materials | Discovered new exit (range 15) 751 | -10/Materials | Build established: Mutant 1250 | -10/Materials | Entered another Materials area 1250 | -9/Materials | Evolved 2 slots: Propulsion x1, Utility x1 1452 | -9/Materials | Discovered new exit (range 10) 1552 | -9/Materials | Build established: Scavenger-Mutant 1918 | -9/Materials | Discovered new exit (range 15) 1959 | -9/Materials | Entered Mines 2010 | -9/Mines | Assembled infested the area 2047 | -9/Mines | Core integrity fell below 50% 2054 | -9/Mines | Core integrity fell below 20% 2055 | -9/Mines | Destroyed by D-53 Grenadier with Mini Grenade Launcher Last Messages --------------- K-01 Serf collects debris. The unstable cave ceiling collapses. Imp. Sensor Array destroyed. HV Slug penetrates Wall. HV Slug penetrates S-10 Pest. S-10 Pest destroyed. D-53 Grenadier suffers critical hit. Destroyed Lgt. Deuterium Engine. Hvy. Assault Rifle destroyed. Lgt. Assault Rifle destroyed. K-01 Serf collects debris. HV Slug penetrates S-10 Pest. S-10 Pest suffers critical hit. HV Slug penetrates Wall. S-10 Pest destroyed. HV Slug penetrates S-10 Pest. S-10 Pest destroyed. HV Slug penetrates Wall. The unstable cave ceiling collapses. U-05 Engineer lays Concrete. Map ----- +----------------------------------------------------+ | #?????????????????????????????????????????????? | | #?????????????????????????????????????????????? | | #?????????????????????????????????????????????? | | #?????????????????????????????????????????????? | | #?????????????????????????????????????????????? | | ##?????????????????????????????????????????????? | | %#??????????????????????????????????????????????? | | ]#??????????????????????????????????????????????? | | ###????????????????????????????????????????????? | | ##???????????????????????????????????????????? | | #???????????????????????????????????????????? | | ##??????????????????????????????????????????? | | """ #??????????????????????? ??????????????????? | | """ #?????????????????????? ???????????????????? | | """ #?????????????????????? #???# ????????????? | | ##?????????????????###?? #??# ????????????? | | # #??????????????????%%%?*=?## ???????????? | | ## ##??????????????????ss=?%%? a ????????????? | | ?## #???#####???????????#%## ? ?????????????? | | ??# #?###] ##???????##?#==;# #??????????????? | | ??# ### #???????# ##*# #% #???????????????? | | ### ## ###??#### #; #???????????????? | | [ ### # #????????????????? | | k #????????????????? | | ## ! = ru #?????????????????? | | ?## ### ## d @ ##?????????????????? | | ??####?## ##?# % d ##??????????????????? | | ????????# ##??# #???????????????????? | | ????????# #???# #???????????????????? | | ????????# #??# ## # ###???????????????????? | | ????????# #?????############?????????????????????? | | ????????# ??????????????????????????????????????? | | ????????# ??????????????????????????????????????? | | ???????? ??????????????????????????????????????? | | ???????? ??????????????????????????????????????? | | ???????? ??????????????????????????????????????? | | ???????? #??????????????????????????????????????? | | ???????? ????????????????????????????????????????? | | ?????????????????????????????????????????????????? | | ?????????????????????????????????????????????????? | | ?????????????????????????????????????????????????? | | ?????????????????????????????????????????????????? | | ?????????????????????????????????????????????????? | | ?????????????????????????????????????????????????? | | ?????????????????????????????????????????????????? | | ?????????????????????????????????????????????????? | | ?????????????????????????????????????????????????? | | ?????????????????????????????????????????????????? | | ?????????????????????????????????????????????????? | | ?????????????????????????????????????????????????? | +----------------------------------------------------+ Best States ------------- Heat Dissipation 42 Energy Generation 10 Energy Capacity 250 Matter Stores 300 Matter Capacity 300 Sight Range 16 Robot Scan Range 13 Terrain Scan Density 10 Evasion (%) 40 Item Schematics ----------------- None Robot Schematics ------------------ None Fabricated ------------ Nothing Alien Tech Used ----------------- None Achievements -------------- None Challenges ------------ None Game ------ Seed DeliveryDispersionNegator Manual? 0 Play Time 00:19:24 Cumulative 14.8 hours Start 2021.09.18 @ 19:00:28 End 2021.09.18 @ 19:20:33 Sessions 1 Manual Loads 0 Difficulty Rogue Special Mode None Game No. 16 Rogue 16 Adventurer 0 Explorer 0 Win Type - Total 0 Types 0/0/0/0/0/0/0/0/0 Lore% 18 Gallery% 20 Achievement% 22 Wizard Run 0 Options --------- ASCII 0 Keyboard 0 Movement Mouse Keybinds 0 Fullscreen 2 Font 24/Smallcaps Map View 76x50 Tactical HUD 0 Map Filters NONE Filters NONE Steam 1 RUN: 23f32323-1e6d-459a-9d76-f051c70170ba